[Event "Live Chess"]
[Site "Chess.com"]
[Date "2023.05.20"]
[Round "-"]
[White "ameetghasi100"]
[Black "martynstanley"]
[Result "1-0"]
[WhiteElo "2711"]
[BlackElo "991"]
[TimeControl "300"]
[EndTime "12:26:11 PDT"]
[Termination "ameetghasi100 won by checkmate"]

1. d4 {[%clk 0:04:59]} 1... e6 {[%clk 0:04:59.3]} 2. c4 {[%clk 0:04:58.8]} 2...
d5 {[%clk 0:04:58.7]} 3. Nc3 {[%clk 0:04:57.5]} 3... c5 {[%clk 0:04:56.9]} 4.
Nf3 {[%clk 0:04:57.4]} 4... Nc6 {[%clk 0:04:56]} 5. cxd5 {[%clk 0:04:56.1]} 5...
exd5 {[%clk 0:04:54.8]} 6. e3 {[%clk 0:04:55.6]} 6... Qb6 {[%clk 0:04:53.7]} 7.
dxc5 {[%clk 0:04:53.7]} 7... Bxc5 {[%clk 0:04:52.5]} 8. Bd3 {[%clk 0:04:52.7]}
8... d4 {[%clk 0:04:48]} 9. exd4 {[%clk 0:04:50.5]} 9... Nxd4 {[%clk 0:04:46.8]}
10. O-O {[%clk 0:04:48.8]} 10... Nxf3+ {[%clk 0:04:45.5]} 11. Qxf3 {[%clk
0:04:48.2]} 11... Qc6 {[%clk 0:04:39.4]} 12. Bb5 {[%clk 0:04:46]} 12... Qxb5
{[%clk 0:04:37.5]} 13. Nxb5 {[%clk 0:04:45.9]} 13... Ne7 {[%clk 0:04:35.5]} 14.
Nc7+ {[%clk 0:04:44.1]} 14... Kd7 {[%clk 0:04:34.8]} 15. Nxa8 {[%clk 0:04:44]}
15... b6 {[%clk 0:04:33.8]} 16. Rd1+ {[%clk 0:04:43.5]} 16... Bd6 {[%clk
0:04:28.4]} 17. Bf4 {[%clk 0:04:43.4]} 17... Bb7 {[%clk 0:04:26.5]} 18. Qxb7+
{[%clk 0:04:40.9]} 18... Ke6 {[%clk 0:04:23.9]} 19. Rxd6+ {[%clk 0:04:40.8]}
19... Kf5 {[%clk 0:04:18.6]} 20. Qxe7 {[%clk 0:04:40.7]} 20... f6 {[%clk
0:04:16.5]} 21. Qe6+ {[%clk 0:04:37.8]} 21... Kxf4 {[%clk 0:04:14.8]} 22. Rd4+
{[%clk 0:04:35.1]} 22... Kg5 {[%clk 0:04:13.2]} 23. Rg4+ {[%clk 0:04:32.8]}
23... Kh6 {[%clk 0:04:11.9]} 24. Qf5 {[%clk 0:04:31.2]} 24... g6 {[%clk
0:04:10.5]} 25. Qxf6 {[%clk 0:04:30.7]} 25... Rxa8 {[%clk 0:04:08.8]} 26. Rh4#
{[%clk 0:04:30.6]} 1-0

[Event "Live Chess"]
[Site "Chess.com"]
[Date "2023.05.20"]
[Round "-"]
[White "zdanevych"]
[Black "ViktorTheCoolBoy"]
[Result "0-1"]
[WhiteElo "1513"]
[BlackElo "2528"]
[TimeControl "300"]
[EndTime "12:26:18 PDT"]
[Termination "ViktorTheCoolBoy won by resignation"]

1. d4 {[%clk 0:04:58]} 1... Nf6 {[%clk 0:04:56.6]} 2. c4 {[%clk 0:04:57.2]} 2...
e6 {[%clk 0:04:55.6]} 3. Nc3 {[%clk 0:04:56.2]} 3... Bb4 {[%clk 0:04:55.2]} 4.
a3 {[%clk 0:04:55.2]} 4... Bxc3+ {[%clk 0:04:50.6]} 5. bxc3 {[%clk 0:04:55.1]}
5... b6 {[%clk 0:04:49.1]} 6. Nf3 {[%clk 0:04:50.9]} 6... Bb7 {[%clk 0:04:47.7]}
7. Bg5 {[%clk 0:04:50]} 7... h6 {[%clk 0:04:45.4]} 8. Bh4 {[%clk 0:04:48.9]}
8... d6 {[%clk 0:04:43.2]} 9. h3 {[%clk 0:04:46.8]} 9... Nbd7 {[%clk 0:04:40.5]}
10. e3 {[%clk 0:04:44]} 10... g5 {[%clk 0:04:38]} 11. Bg3 {[%clk 0:04:42.6]}
11... Qe7 {[%clk 0:04:37.5]} 12. Bd3 {[%clk 0:04:41.6]} 12... Ne4 {[%clk
0:04:36.3]} 13. Bxe4 {[%clk 0:04:30.2]} 13... Bxe4 {[%clk 0:04:35]} 14. O-O
{[%clk 0:04:29.2]} 14... f5 {[%clk 0:04:31.9]} 15. Nd2 {[%clk 0:04:25.8]} 15...
Bb7 {[%clk 0:04:30.1]} 16. c5 {[%clk 0:04:18.9]} 16... bxc5 {[%clk 0:04:27.3]}
17. dxc5 {[%clk 0:04:18.8]} 17... Nxc5 {[%clk 0:04:26.2]} 18. Nb3 {[%clk
0:04:11.4]} 18... Ne4 {[%clk 0:04:22.8]} 19. Bh2 {[%clk 0:04:05.9]} 19... h5
{[%clk 0:04:20.9]} 20. f3 {[%clk 0:04:01.9]} 20... Nf6 {[%clk 0:04:17.4]} 21.
Nd4 {[%clk 0:03:52.9]} 21... g4 {[%clk 0:04:12.5]} 22. fxg4 {[%clk 0:03:51.6]}
22... hxg4 {[%clk 0:04:11.3]} 23. Qa4+ {[%clk 0:03:44.1]} 23... Qd7 {[%clk
0:04:06.2]} 24. Qxd7+ {[%clk 0:03:34.7]} 24... Kxd7 {[%clk 0:04:04.7]} 25. hxg4
{[%clk 0:03:29.8]} 25... Nxg4 {[%clk 0:04:03.3]} 26. Bg3 {[%clk 0:03:24.6]}
26... Nxe3 {[%clk 0:04:00.3]} 27. Rf2 {[%clk 0:03:15]} 27... Rag8 {[%clk
0:03:56.8]} 28. Raa2 {[%clk 0:03:06.1]} 0-1

[Event "Live Chess"]
[Site "Chess.com"]
[Date "2023.05.20"]
[Round "-"]
[White "Zeraora719"]
[Black "Brooms1989"]
[Result "0-1"]
[WhiteElo "731"]
[BlackElo "1019"]
[TimeControl "300"]
[EndTime "12:26:20 PDT"]
[Termination "Brooms1989 won - game abandoned"]

1. e4 {[%clk 0:04:44.2]} 1... e5 {[%clk 0:04:58.6]} 2. Bc4 {[%clk 0:04:39]} 2...
Nf6 {[%clk 0:04:55.9]} 3. d3 {[%clk 0:04:36.5]} 3... Nc6 {[%clk 0:04:47.2]} 4.
Bf4 {[%clk 0:04:34.3]} 4... exf4 {[%clk 0:04:42.6]} 5. g4 {[%clk 0:04:32.1]}
5... fxg3 {[%clk 0:04:40.3]} 6. hxg3 {[%clk 0:04:29.6]} 6... Bc5 {[%clk
0:04:34.7]} 7. f4 {[%clk 0:04:27.3]} 7... d5 {[%clk 0:04:28.1]} 8. e5 {[%clk
0:04:23.4]} 8... dxc4 {[%clk 0:04:25.7]} 9. exf6 {[%clk 0:04:22.1]} 9... Qxf6
{[%clk 0:04:25.4]} 10. dxc4 {[%clk 0:04:20.3]} 10... O-O {[%clk 0:04:21.6]} 11.
Nc3 {[%clk 0:04:17.1]} 11... Re8+ {[%clk 0:04:20.3]} 12. Nce2 {[%clk 0:04:13.9]}
12... Bg4 {[%clk 0:04:19.2]} 13. Qd2 {[%clk 0:04:07.9]} 13... Qxb2 {[%clk
0:04:16]} 14. Nf3 {[%clk 0:04:03.9]} 14... Bxf3 {[%clk 0:04:12.6]} 15. Qc1
{[%clk 0:03:58.3]} 15... Qc3+ {[%clk 0:03:58.3]} 0-1

[Event "Live Chess"]
[Site "Chess.com"]
[Date "2023.05.20"]
[Round "-"]
[White "AdamOwls"]
[Black "john_chandler"]
[Result "1-0"]
[WhiteElo "1948"]
[BlackElo "804"]
[TimeControl "300"]
[EndTime "12:26:41 PDT"]
[Termination "AdamOwls won by checkmate"]

1. e4 {[%clk 0:04:58.7]} 1... c6 {[%clk 0:04:57.4]} 2. d4 {[%clk 0:04:56.2]}
2... d5 {[%clk 0:04:56]} 3. exd5 {[%clk 0:04:55.2]} 3... cxd5 {[%clk 0:04:55.4]}
4. Bd3 {[%clk 0:04:54.5]} 4... Nc6 {[%clk 0:04:53.3]} 5. c3 {[%clk 0:04:53.8]}
5... Nf6 {[%clk 0:04:49.7]} 6. h3 {[%clk 0:04:52.8]} 6... g6 {[%clk 0:04:46.3]}
7. Nf3 {[%clk 0:04:51.6]} 7... Bg7 {[%clk 0:04:45.6]} 8. Bg5 {[%clk 0:04:50.4]}
8... O-O {[%clk 0:04:41.7]} 9. O-O {[%clk 0:04:49.8]} 9... e6 {[%clk 0:04:32.6]}
10. Re1 {[%clk 0:04:49.1]} 10... Ne4 {[%clk 0:04:22.5]} 11. Bxd8 {[%clk
0:04:46.1]} 11... Rxd8 {[%clk 0:04:13.7]} 12. Bxe4 {[%clk 0:04:44.4]} 12... dxe4
{[%clk 0:04:12.7]} 13. Rxe4 {[%clk 0:04:41.6]} 13... b6 {[%clk 0:04:02.9]} 14.
Nbd2 {[%clk 0:04:40.1]} 14... Bb7 {[%clk 0:03:55.9]} 15. Re2 {[%clk 0:04:38.5]}
15... Ne7 {[%clk 0:03:54.4]} 16. Qe1 {[%clk 0:04:36.3]} 16... Bd5 {[%clk
0:03:38.9]} 17. Ne5 {[%clk 0:04:34.4]} 17... Nf5 {[%clk 0:03:27.7]} 18. Ne4
{[%clk 0:04:32.1]} 18... Bc4 {[%clk 0:03:22.7]} 19. Nxc4 {[%clk 0:04:27.7]}
19... Rac8 {[%clk 0:03:12.9]} 20. b3 {[%clk 0:04:25.2]} 20... b5 {[%clk
0:03:07.4]} 21. Ne5 {[%clk 0:04:20.3]} 21... Nd6 {[%clk 0:02:57.1]} 22. Nxd6
{[%clk 0:04:17.9]} 22... Rxd6 {[%clk 0:02:55.6]} 23. Rd1 {[%clk 0:04:09.7]}
23... Rxc3 {[%clk 0:02:38.3]} 24. Nxf7 {[%clk 0:03:59.8]} 24... Rdc6 {[%clk
0:02:12.5]} 25. Ng5 {[%clk 0:03:55.8]} 25... Bh6 {[%clk 0:01:58.6]} 26. Nxe6
{[%clk 0:03:53.6]} 26... Rc1 {[%clk 0:01:53.6]} 27. d5 {[%clk 0:03:38.5]} 27...
Rc8 {[%clk 0:01:42.8]} 28. d6 {[%clk 0:03:34.6]} 28... b4 {[%clk 0:01:34]} 29.
d7 {[%clk 0:03:28.8]} 29... Rxd1 {[%clk 0:01:10.8]} 30. Qxd1 {[%clk 0:03:26.5]}
30... Rc1 {[%clk 0:01:08.8]} 31. Qxc1 {[%clk 0:03:24.4]} 31... Bxc1 {[%clk
0:01:07.8]} 32. d8=Q+ {[%clk 0:03:23.4]} 32... Kf7 {[%clk 0:00:45.3]} 33. Qf8#
{[%clk 0:03:23.3]} 1-0

[Event "Live Chess"]
[Site "Chess.com"]
[Date "2023.05.20"]
[Round "-"]
[White "Salpingidis"]
[Black "wot-not"]
[Result "1-0"]
[WhiteElo "2302"]
[BlackElo "1482"]
[TimeControl "300"]
[EndTime "12:26:43 PDT"]
[Termination "Salpingidis won by resignation"]

1. d4 {[%clk 0:04:55.9]} 1... Nf6 {[%clk 0:04:58.8]} 2. c4 {[%clk 0:04:55.1]}
2... c5 {[%clk 0:04:57.6]} 3. d5 {[%clk 0:04:54]} 3... d6 {[%clk 0:04:51.8]} 4.
Nc3 {[%clk 0:04:52.7]} 4... e5 {[%clk 0:04:51.1]} 5. e4 {[%clk 0:04:50.8]} 5...
Be7 {[%clk 0:04:50.5]} 6. Nf3 {[%clk 0:04:45.2]} 6... Nbd7 {[%clk 0:04:50]} 7.
Bd3 {[%clk 0:04:44.1]} 7... Nf8 {[%clk 0:04:49]} 8. O-O {[%clk 0:04:43.2]} 8...
Ng6 {[%clk 0:04:48.1]} 9. a3 {[%clk 0:04:41.6]} 9... O-O {[%clk 0:04:47.3]} 10.
b4 {[%clk 0:04:40.7]} 10... b6 {[%clk 0:04:46.1]} 11. Be3 {[%clk 0:04:36]} 11...
h6 {[%clk 0:04:44.6]} 12. Qd2 {[%clk 0:04:33.9]} 12... Nh7 {[%clk 0:04:43]} 13.
bxc5 {[%clk 0:04:28.9]} 13... bxc5 {[%clk 0:04:41.7]} 14. Rfb1 {[%clk 0:04:28]}
14... Bg4 {[%clk 0:04:37.9]} 15. Ne1 {[%clk 0:04:23.4]} 15... Bg5 {[%clk
0:04:35]} 16. Bxg5 {[%clk 0:04:18.5]} 16... Qxg5 {[%clk 0:04:30.5]} 17. Qxg5
{[%clk 0:04:16.2]} 17... Nxg5 {[%clk 0:04:29.7]} 18. f3 {[%clk 0:04:15.1]} 18...
Bc8 {[%clk 0:04:08.4]} 19. Nb5 {[%clk 0:04:09.4]} 19... f5 {[%clk 0:03:57.8]}
20. Nc7 {[%clk 0:04:05]} 20... fxe4 {[%clk 0:03:54]} 21. Bxe4 {[%clk 0:04:02.8]}
21... Bf5 {[%clk 0:03:52.1]} 22. Bxf5 {[%clk 0:03:56.3]} 22... Rxf5 {[%clk
0:03:50.8]} 23. Nxa8 {[%clk 0:03:55.1]} 1-0

[Event "Live Chess"]
[Site "Chess.com"]
[Date "2023.05.20"]
[Round "-"]
[White "Woodpusher500"]
[Black "ReceptiveCamel"]
[Result "1-0"]
[WhiteElo "1231"]
[BlackElo "686"]
[TimeControl "300"]
[EndTime "12:26:45 PDT"]
[Termination "Woodpusher500 won by checkmate"]

1. e4 {[%clk 0:04:54.7]} 1... e5 {[%clk 0:04:56.7]} 2. Nc3 {[%clk 0:04:51.1]}
2... Nc6 {[%clk 0:04:53.8]} 3. Bc4 {[%clk 0:04:47.4]} 3... Nf6 {[%clk
0:04:50.3]} 4. d3 {[%clk 0:04:40.8]} 4... Bc5 {[%clk 0:04:49]} 5. Nf3 {[%clk
0:04:27.6]} 5... Ng4 {[%clk 0:04:45.9]} 6. O-O {[%clk 0:04:14.2]} 6... Nxf2
{[%clk 0:04:42.6]} 7. Rxf2 {[%clk 0:04:12.1]} 7... Bxf2+ {[%clk 0:04:42.1]} 8.
Kxf2 {[%clk 0:04:10.5]} 8... O-O {[%clk 0:04:36.5]} 9. Bg5 {[%clk 0:04:05.2]}
9... h6 {[%clk 0:04:29.3]} 10. Bxd8 {[%clk 0:04:00.1]} 10... Rxd8 {[%clk
0:04:26]} 11. d4 {[%clk 0:03:44.4]} 11... exd4 {[%clk 0:04:23.9]} 12. Nxd4
{[%clk 0:03:42.5]} 12... Nxd4 {[%clk 0:04:22.4]} 13. Qxd4 {[%clk 0:03:39.7]}
13... b6 {[%clk 0:04:19.7]} 14. Qd5 {[%clk 0:03:35.9]} 14... c6 {[%clk
0:04:17.3]} 15. Qxf7+ {[%clk 0:03:33.1]} 15... Kh8 {[%clk 0:04:14.2]} 16. Rf1
{[%clk 0:03:25.5]} 16... Bb7 {[%clk 0:04:10.2]} 17. Kg1 {[%clk 0:03:22.2]} 17...
c5 {[%clk 0:04:02.1]} 18. e5 {[%clk 0:03:09.6]} 18... b5 {[%clk 0:03:43.7]} 19.
Bd5 {[%clk 0:03:06.6]} 19... Bxd5 {[%clk 0:03:41]} 20. Nxd5 {[%clk 0:03:03.6]}
20... Rf8 {[%clk 0:03:34.2]} 21. Qxf8+ {[%clk 0:02:58.3]} 21... Rxf8 {[%clk
0:03:31.2]} 22. Rxf8+ {[%clk 0:02:55.7]} 22... Kh7 {[%clk 0:03:30.5]} 23. Rd8
{[%clk 0:02:50.8]} 23... c4 {[%clk 0:03:28]} 24. Rxd7 {[%clk 0:02:47.4]} 24...
b4 {[%clk 0:03:27]} 25. e6 {[%clk 0:02:41.8]} 25... b3 {[%clk 0:03:26.2]} 26.
axb3 {[%clk 0:02:35.3]} 26... cxb3 {[%clk 0:03:24.8]} 27. cxb3 {[%clk
0:02:32.4]} 27... Kg6 {[%clk 0:03:24.3]} 28. e7 {[%clk 0:02:29.2]} 28... Kf5
{[%clk 0:03:23.8]} 29. e8=Q {[%clk 0:02:25.9]} 29... Kg5 {[%clk 0:03:21.8]} 30.
Nb4 {[%clk 0:02:19.6]} 30... a5 {[%clk 0:03:20]} 31. Nc6 {[%clk 0:02:14.2]}
31... a4 {[%clk 0:03:18.9]} 32. bxa4 {[%clk 0:02:12]} 32... g6 {[%clk 0:03:16]}
33. Qe5+ {[%clk 0:02:07.8]} 33... Kh4 {[%clk 0:03:14]} 34. Rd4# {[%clk
0:02:03.8]} 1-0

[Event "Live Chess"]
[Site "Chess.com"]
[Date "2023.05.20"]
[Round "-"]
[White "MartinWalker4"]
[Black "mliszewski"]
[Result "1-0"]
[WhiteElo "2089"]
[BlackElo "1886"]
[TimeControl "300"]
[EndTime "12:26:50 PDT"]
[Termination "MartinWalker4 won by resignation"]

1. e4 {[%clk 0:04:55.9]} 1... c6 {[%clk 0:04:59.1]} 2. d4 {[%clk 0:04:53.9]}
2... d5 {[%clk 0:04:59]} 3. exd5 {[%clk 0:04:51.2]} 3... cxd5 {[%clk 0:04:58.9]}
4. c4 {[%clk 0:04:49.4]} 4... Nf6 {[%clk 0:04:57.5]} 5. Nc3 {[%clk 0:04:48.2]}
5... g6 {[%clk 0:04:53.4]} 6. Qb3 {[%clk 0:04:44.9]} 6... Bg7 {[%clk 0:04:51.3]}
7. cxd5 {[%clk 0:04:42.8]} 7... O-O {[%clk 0:04:50.6]} 8. Be2 {[%clk 0:04:41.1]}
8... Nbd7 {[%clk 0:04:45.4]} 9. Bf3 {[%clk 0:04:38.7]} 9... Nb6 {[%clk
0:04:44.2]} 10. Nge2 {[%clk 0:04:36.7]} 10... Bg4 {[%clk 0:04:43]} 11. Bxg4
{[%clk 0:04:30.6]} 11... Nxg4 {[%clk 0:04:42.2]} 12. O-O {[%clk 0:04:18.4]}
12... Nf6 {[%clk 0:04:40.4]} 13. Nf4 {[%clk 0:04:10.6]} 13... Qd6 {[%clk
0:04:30.8]} 14. Be3 {[%clk 0:04:05.2]} 14... a5 {[%clk 0:04:28.2]} 15. Rac1
{[%clk 0:03:28]} 15... a4 {[%clk 0:04:26.7]} 16. Qd1 {[%clk 0:03:21.7]} 16...
Nbxd5 {[%clk 0:04:25.1]} 17. Nfxd5 {[%clk 0:03:18.5]} 17... Nxd5 {[%clk
0:04:24.3]} 18. Qf3 {[%clk 0:03:17.2]} 18... Nxe3 {[%clk 0:04:15.4]} 19. fxe3
{[%clk 0:03:15.1]} 19... b6 {[%clk 0:04:12.7]} 20. Qd5 {[%clk 0:02:59.8]} 20...
Qb4 {[%clk 0:04:03.1]} 21. Qb5 {[%clk 0:02:50.2]} 21... Qxc3 {[%clk 0:03:53.1]}
22. Rxc3 {[%clk 0:02:47.6]} 1-0

[Event "Live Chess"]
[Site "Chess.com"]
[Date "2023.05.20"]
[Round "-"]
[White "rideuv21"]
[Black "Ocelot32"]
[Result "1-0"]
[WhiteElo "1833"]
[BlackElo "1389"]
[TimeControl "300"]
[EndTime "12:26:55 PDT"]
[Termination "rideuv21 won by checkmate"]

1. e4 {[%clk 0:04:58.5]} 1... e6 {[%clk 0:04:58.6]} 2. d4 {[%clk 0:04:55.1]}
2... d5 {[%clk 0:04:57.6]} 3. Nc3 {[%clk 0:04:53.1]} 3... dxe4 {[%clk
0:04:56.3]} 4. Nxe4 {[%clk 0:04:53]} 4... Nd7 {[%clk 0:04:53.3]} 5. Nf3 {[%clk
0:04:50.7]} 5... Ngf6 {[%clk 0:04:52.4]} 6. Bg5 {[%clk 0:04:50.1]} 6... Be7
{[%clk 0:04:51.1]} 7. Bxf6 {[%clk 0:04:48.2]} 7... Nxf6 {[%clk 0:04:50.1]} 8.
Bd3 {[%clk 0:04:44.2]} 8... b6 {[%clk 0:04:48.1]} 9. Qe2 {[%clk 0:04:42.1]} 9...
Bb7 {[%clk 0:04:46.6]} 10. O-O-O {[%clk 0:04:40.2]} 10... O-O {[%clk 0:04:45]}
11. h4 {[%clk 0:04:38.3]} 11... Qc8 {[%clk 0:04:39.3]} 12. h5 {[%clk 0:04:36.5]}
12... h6 {[%clk 0:04:37.9]} 13. Rdg1 {[%clk 0:04:34.6]} 13... c5 {[%clk
0:04:25]} 14. dxc5 {[%clk 0:04:31]} 14... Bxc5 {[%clk 0:04:23.2]} 15. g4 {[%clk
0:04:23.1]} 15... Nxe4 {[%clk 0:04:21.3]} 16. Bxe4 {[%clk 0:04:22.4]} 16... Bxe4
{[%clk 0:04:17.5]} 17. Qxe4 {[%clk 0:04:22.3]} 17... Bxf2 {[%clk 0:04:15.5]} 18.
Rg2 {[%clk 0:04:21.1]} 18... Qc5 {[%clk 0:04:04.4]} 19. g5 {[%clk 0:04:17.5]}
19... Be3+ {[%clk 0:04:02.7]} 20. Kb1 {[%clk 0:04:14.1]} 20... Rac8 {[%clk
0:04:01.4]} 21. gxh6 {[%clk 0:04:07.4]} 21... Bxh6 {[%clk 0:03:58.6]} 22. Rhg1
{[%clk 0:04:07]} 22... Qxh5 {[%clk 0:03:43.9]} 23. Rh2 {[%clk 0:04:00.9]} 23...
Qc5 {[%clk 0:03:23.3]} 24. Rxh6 {[%clk 0:03:57.8]} 24... g6 {[%clk 0:03:21]} 25.
Rhxg6+ {[%clk 0:03:56.2]} 25... fxg6 {[%clk 0:03:19.6]} 26. Qxg6+ {[%clk
0:03:56.1]} 26... Kh8 {[%clk 0:03:18.2]} 27. Qg7# {[%clk 0:03:56]} 1-0

[Event "Live Chess"]
[Site "Chess.com"]
[Date "2023.05.20"]
[Round "-"]
[White "ChippyChill"]
[Black "gggoodgamebroski"]
[Result "0-1"]
[WhiteElo "422"]
[BlackElo "507"]
[TimeControl "300"]
[EndTime "12:26:55 PDT"]
[Termination "gggoodgamebroski won by resignation"]

1. e4 {[%clk 0:04:45.3]} 1... d5 {[%clk 0:04:59.9]} 2. e5 {[%clk 0:04:41.9]}
2... Bf5 {[%clk 0:04:49.3]} 3. Bd3 {[%clk 0:04:29.5]} 3... Bxd3 {[%clk 0:04:46]}
4. cxd3 {[%clk 0:04:09.4]} 4... e6 {[%clk 0:04:45.9]} 5. Nc3 {[%clk 0:04:01.7]}
5... c6 {[%clk 0:04:43.1]} 6. Nf3 {[%clk 0:04:00.5]} 6... f6 {[%clk 0:04:40.8]}
7. exf6 {[%clk 0:03:58.4]} 7... Qxf6 {[%clk 0:04:37.5]} 8. Nd4 {[%clk
0:03:56.8]} 8... Qxd4 {[%clk 0:04:33.4]} 9. O-O {[%clk 0:03:48.6]} 9... Bd6
{[%clk 0:04:23.5]} 10. Qh5+ {[%clk 0:03:38.3]} 10... g6 {[%clk 0:04:19.8]} 11.
Qxg6+ {[%clk 0:03:31.8]} 0-1

[Event "Live Chess"]
[Site "Chess.com"]
[Date "2023.05.20"]
[Round "-"]
[White "JoshMcK"]
[Black "Stanbad1"]
[Result "0-1"]
[WhiteElo "1564"]
[BlackElo "2432"]
[TimeControl "300"]
[EndTime "12:27:00 PDT"]
[Termination "Stanbad1 won by resignation"]

1. e4 {[%clk 0:04:59.2]} 1... e6 {[%clk 0:04:58.2]} 2. d4 {[%clk 0:04:51.4]}
2... d5 {[%clk 0:04:56.8]} 3. Nc3 {[%clk 0:04:48.9]} 3... Nf6 {[%clk 0:04:55.5]}
4. e5 {[%clk 0:04:47.8]} 4... Nfd7 {[%clk 0:04:53.5]} 5. f4 {[%clk 0:04:47.1]}
5... c5 {[%clk 0:04:51.5]} 6. Nf3 {[%clk 0:04:45.3]} 6... Nc6 {[%clk 0:04:51.4]}
7. Be3 {[%clk 0:04:42.8]} 7... a6 {[%clk 0:04:50.9]} 8. a3 {[%clk 0:04:41]} 8...
b5 {[%clk 0:04:50.2]} 9. Bd3 {[%clk 0:04:37.1]} 9... c4 {[%clk 0:04:44.7]} 10.
Be2 {[%clk 0:04:36]} 10... Nb6 {[%clk 0:04:43.6]} 11. O-O {[%clk 0:04:33.6]}
11... Rb8 {[%clk 0:04:38.5]} 12. Qe1 {[%clk 0:04:15.1]} 12... Na7 {[%clk
0:04:27.6]} 13. h3 {[%clk 0:04:00.3]} 13... a5 {[%clk 0:04:24.2]} 14. b4 {[%clk
0:03:57.5]} 14... axb4 {[%clk 0:04:19.7]} 15. axb4 {[%clk 0:03:56]} 15... Qc7
{[%clk 0:04:19]} 16. Nd1 {[%clk 0:03:43.6]} 16... Na4 {[%clk 0:04:01.3]} 17. c3
{[%clk 0:03:39.6]} 17... g6 {[%clk 0:03:58.4]} 18. Qd2 {[%clk 0:03:33.5]} 18...
h5 {[%clk 0:03:29.7]} 19. Nb2 {[%clk 0:03:28.8]} 19... Nxc3 {[%clk 0:03:22.8]}
20. Qxc3 {[%clk 0:03:20.7]} 20... Nc6 {[%clk 0:03:21.9]} 21. Rfb1 {[%clk
0:02:59.6]} 21... Bxb4 {[%clk 0:03:18.2]} 22. Qc2 {[%clk 0:02:56.3]} 22... Be7
{[%clk 0:03:15.7]} 23. Nd1 {[%clk 0:02:48.6]} 23... b4 {[%clk 0:03:14]} 24. Qd2
{[%clk 0:02:41.2]} 24... c3 {[%clk 0:03:11.8]} 25. Qc2 {[%clk 0:02:36.6]} 25...
Na5 {[%clk 0:03:07]} 26. Nxc3 {[%clk 0:02:24.7]} 26... O-O {[%clk 0:02:49.6]}
27. Qa4 {[%clk 0:01:46.6]} 27... Qxc3 {[%clk 0:02:43.3]} 28. Qxa5 {[%clk
0:01:41.3]} 28... Qxe3+ {[%clk 0:02:42]} 29. Kf1 {[%clk 0:01:38.9]} 29... Bd7
{[%clk 0:02:40]} 30. Qc7 {[%clk 0:01:30.5]} 30... Rfd8 {[%clk 0:02:38]} 31. Rb2
{[%clk 0:01:19.5]} 31... Rbc8 {[%clk 0:02:34.8]} 32. Qa5 {[%clk 0:01:16]} 32...
Rc1+ {[%clk 0:02:32.4]} 33. Ne1 {[%clk 0:01:09.3]} 33... Qxf4+ {[%clk
0:02:30.2]} 34. Bf3 {[%clk 0:01:07.3]} 34... Rxa1 {[%clk 0:02:26.8]} 35. Qxa1
{[%clk 0:01:05.6]} 35... Qxd4 {[%clk 0:02:26.5]} 36. Qb1 {[%clk 0:00:57.6]}
36... Bb5+ {[%clk 0:02:24.6]} 37. Be2 {[%clk 0:00:53.2]} 37... Bxe2+ {[%clk
0:02:22.9]} 38. Rxe2 {[%clk 0:00:51.7]} 38... Bc5 {[%clk 0:02:19.6]} 39. Nf3
{[%clk 0:00:48.2]} 39... Qf4 {[%clk 0:02:17.7]} 40. Qd3 {[%clk 0:00:38.4]} 40...
Bf8 {[%clk 0:02:11.9]} 41. Kf2 {[%clk 0:00:34.8]} 41... Rc8 {[%clk 0:02:10.7]}
42. g3 {[%clk 0:00:33]} 42... Qc1 {[%clk 0:02:08]} 43. Re1 {[%clk 0:00:28.1]}
43... Qc2+ {[%clk 0:02:04.8]} 44. Qxc2 {[%clk 0:00:24.3]} 44... Rxc2+ {[%clk
0:02:04.6]} 45. Re2 {[%clk 0:00:23.5]} 45... b3 {[%clk 0:02:04]} 46. Nd4 {[%clk
0:00:18.5]} 46... Bc5 {[%clk 0:02:02.5]} 47. Rxc2 {[%clk 0:00:16.3]} 47... bxc2
{[%clk 0:02:00.9]} 48. Ke2 {[%clk 0:00:16.2]} 48... c1=Q {[%clk 0:01:59.4]} 0-1